bitfinex-derivatives/quotes_ETHF0:USTF0_20250904
["timestamp","ask_amount","ask_price","bid_price","bid_amount"]
[1756948121235,0.53236244,4462.7,4461.9,0.97738147]
[1756948121435,0.112,4462.9,4461.9,0.97738147]
[1756948121636,0.112,4462.9,4461.7,0.231]
[1756948121637,0.53231546,4462.8,4461.7,0.231]
[1756948121828,0.112,4462.9,4461.7,0.97738147]
[1756948121829,0.53231546,4462.7,4461.7,0.97738147]
[1756948122030,0.97738147,4462.2,4460.3,40.8]
[1756948122225,0.53231546,4462.1,4460.7,0.97738147]
[1756948122430,0.53231546,4462.0,4460.7,0.97738147]
[1756948122637,0.53231546,4461.9,4460.7,0.97738147]
[1756948122836,0.53231546,4461.8,4460.7,0.97738147]
[1756948123030,0.97738147,4462.3,4460.7,0.97738147]
[1756948123236,0.067,4462.8,4460.7,0.97738147]
[1756948123237,0.97738147,4461.9,4460.7,0.97738147]
[1756948123437,0.53222328,4461.8,4460.7,0.97738147]
[1756948123637,0.53222328,4461.7,4460.7,0.97738147]
[1756948123836,0.53222328,4461.6,4460.7,0.97738147]
[1756948124037,0.97738147,4461.9,4460.7,0.97738147]
[1756948124236,0.53229471,4461.8,4460.7,0.97738147]
[1756948124437,0.53229471,4461.7,4460.7,0.97738147]
[1756948124639,0.53229471,4461.6,4460.7,0.97738147]
[1756948124841,0.97738147,4461.9,4460.7,0.97738147]
[1756948125042,0.5324655,4461.8,4460.7,0.97738147]
[1756948125242,0.5324655,4461.7,4460.7,0.97738147]
[1756948125442,0.5324655,4461.6,4460.7,0.97738147]
[1756948125645,0.5324655,4461.5,4460.7,0.97738147]
[1756948125846,0.97738147,4461.9,4460.7,0.97738147]
[1756948126138,0.53262255,4461.8,4460.8,0.97738147]
[1756948126343,0.53262255,4461.7,4460.8,0.97738147]
[1756948126544,0.53262255,4461.6,4460.8,0.97738147]
[1756948126845,0.53262255,4461.5,4460.8,0.97738147]
[1756948127040,0.53262255,4461.4,4460.8,0.97738147]
[1756948127237,0.97738147,4461.1,4459.7,0.23]
[1756948127436,0.97738147,4461.5,4460.0,0.97738147]
[1756948127642,0.53287859,4461.4,4460.0,0.97738147]
[1756948127846,0.53287859,4461.3,4460.0,0.97738147]
[1756948128049,0.53287859,4461.2,4460.4,0.97738147]
[1756948128238,0.53287859,4461.1,4460.4,0.97738147]
[1756948128439,0.53287859,4461.0,4460.4,0.97738147]
[1756948128640,0.218,4461.7,4460.4,0.97738147]
[1756948128842,0.53311855,4461.6,4460.4,0.97738147]
[1756948129041,0.53311855,4461.5,4460.8,0.97738147]
[1756948129347,0.53311855,4461.4,4460.8,0.97738147]
[1756948129547,0.53311855,4461.3,4460.8,0.97738147]
[1756948129744,0.53311855,4461.2,4460.8,0.97738147]
[1756948129952,0.53311855,4461.1,4460.8,0.97738147]
[1756948130150,0.53311855,4461.0,4460.8,0.97738147]
[1756948130350,0.218,4461.7,4460.8,0.97738147]
[1756948130351,0.22415,4461.6,4460.8,0.97738147]
[1756948130550,0.53325381,4461.5,4460.8,0.97738147]
[1756948130738,0.53325381,4461.4,4460.8,0.97738147]
[1756948130943,0.53325381,4461.3,4460.8,0.97738147]
[1756948131152,0.53325381,4461.2,4460.8,0.97738147]
[1756948131350,0.53325381,4461.1,4460.8,0.97738147]
[1756948131540,0.164,4462.1,4460.8,0.97738147]
[1756948131850,0.53339522,4462.0,4460.8,0.97738147]
[1756948132041,0.53339522,4461.9,4460.8,0.97738147]
[1756948132243,0.53339522,4461.8,4460.8,0.97738147]
[1756948132546,0.53339522,4461.7,4460.8,0.97738147]
[1756948132751,0.53339522,4461.6,4460.8,0.97738147]
[1756948132944,0.53339522,4461.5,4460.8,0.97738147]
[1756948133143,0.53339522,4461.4,4460.8,0.97738147]
[1756948133346,0.53339522,4461.3,4460.8,0.97738147]
[1756948133547,0.112,4461.3,4460.8,0.97738147]
[1756948138959,0.112,4461.3,4461.2,0.97738147]
[1756948139143,0.23,4462.4,4461.2,0.97738147]
[1756948139349,0.75786652,4462.3,4461.2,0.97738147]
[1756948139542,0.53374652,4462.2,4461.2,0.97738147]
[1756948139949,0.53374652,4462.1,4461.2,0.97738147]
[1756948140258,0.53374652,4462.1,4459.7,0.23]
[1756948140259,0.97738147,4461.7,4460.7,0.97738147]
[1756948140447,0.53374652,4461.6,4460.7,0.97738147]
[1756948140653,0.53374652,4461.5,4461.1,0.97738147]
[1756948140854,0.112,4462.0,4461.1,0.97738147]
[1756948141055,0.53367255,4461.9,4461.1,0.97738147]
[1756948141263,0.53367255,4461.8,4461.1,0.97738147]
[1756948141460,0.53367255,4461.7,4461.5,0.97738147]
[1756948141765,0.112,4462.0,4461.5,0.97738147]
[1756948142760,0.112,4462.0,4461.9,0.97738147]
[1756948142959,32.288,4462.9,4461.9,0.97738147]
[1756948143160,0.53365926,4462.8,4461.9,0.97738147]
[1756948143360,0.53365926,4462.7,4461.9,0.97738147]
[1756948143560,0.53365926,4462.6,4462.5,0.81372803]
[1756948143860,0.53365926,4462.6,4462.2,0.81372803]
[1756948144160,0.53365926,4462.5,4462.2,0.81372803]
[1756948144357,0.112,4462.7,4462.2,0.81372803]
[1756948144660,0.53364151,4462.6,4462.2,0.81372803]
[1756948144958,0.53364151,4462.5,4462.2,0.81372803]
[1756948145159,0.112,4462.7,4462.2,0.81372803]
[1756948145352,0.53362151,4462.6,4462.1,0.81372803]
[1756948145554,0.53362151,4462.5,4462.1,0.81372803]
[1756948145760,0.112,4462.7,4462.1,0.81372803]
[1756948145963,0.53363499,4462.6,4462.1,0.81372803]
[1756948146261,0.53363499,4462.5,4462.1,0.81372803]
[1756948146457,0.81372803,4462.2,4461.3,0.81372803]
[1756948146654,0.81372803,4461.9,4461.0,0.81372803]
[1756948146854,0.81372803,4461.9,4461.3,0.81372803]
[1756948147050,0.81372803,4461.9,4461.0,0.81372803]
[1756948147658,0.81372803,4462.2,4461.3,0.81372803]
[1756948147859,0.53363007,4462.1,4461.3,0.81372803]
[1756948148060,0.81372803,4461.9,4461.1,0.81372803]
[1756948148462,0.81372803,4461.6,4460.8,0.81372803]
[1756948149762,0.81372803,4461.7,4460.8,0.81372803]
[1756948149963,0.53389003,4461.6,4460.8,0.81372803]
[1756948150161,0.81372803,4461.7,4460.8,0.81372803]
[1756948150366,0.53392279,4461.6,4461.1,0.81372803]
[1756948150662,0.81372803,4461.7,4461.1,0.81372803]
[1756948150860,0.53391193,4461.6,4461.1,0.81372803]
[1756948151059,0.81372803,4461.7,4461.1,0.81372803]
[1756948151362,0.5339353,4461.6,4461.1,0.81372803]
[1756948151562,0.5339353,4461.5,4461.1,0.81372803]
[1756948151855,0.81372803,4461.7,4461.1,0.81372803]
[1756948152054,0.53409673,4461.6,4461.1,0.81372803]
[1756948152254,0.53409673,4461.5,4461.1,0.81372803]
[1756948152460,0.1506,4461.6,4461.5,0.1181]
[1756948152657,0.68473444,4461.6,4461.5,0.6272]
[1756948153266,0.73183444,4461.6,4461.5,0.4256]
[1756948153662,0.68473444,4461.6,4461.0,0.1181]
[1756948153854,0.1506,4461.1,4461.0,0.3197]
[1756948154059,0.68473444,4461.1,4461.0,0.5206]
[1756948154462,0.68473444,4461.1,4461.0,0.8281]
[1756948154665,0.68473444,4461.1,4461.0,0.6272]
[1756948154859,0.73183444,4461.1,4461.0,0.4256]
[1756948155963,0.68473444,4461.1,4461.0,0.4256]
[1756948156467,0.68473444,4461.1,4461.0,0.6272]
[1756948157065,0.53413444,4461.1,4461.0,0.8281]
[1756948157370,0.60943444,4461.1,4461.0,0.8281]
[1756948159564,0.53413444,4461.1,4461.0,4.8281]
[1756948159766,0.112,4461.3,4461.1,0.3075]
[1756948159967,0.112,4461.3,4461.2,1.21622803]
[1756948160263,0.3806,4462.1,4462.0,0.1181]
[1756948160569,0.91477303,4462.1,4462.0,0.6272]
[1756948161363,1.72850106,4462.1,4462.0,0.6272]
[1756948162572,0.1506,4461.2,4461.0,0.1181]
[1756948162868,0.96432803,4461.2,4461.1,0.3075]
[1756948163068,1.49928305,4461.2,4461.1,0.3075]
[1756948163371,1.54638305,4461.2,4461.1,0.3075]
[1756948163669,0.68555502,4461.2,4461.1,0.5091]
[1756948163870,0.68555502,4461.2,4461.1,0.71]
[1756948165973,0.61025502,4461.2,4461.1,0.71]
[1756948170276,0.53495502,4461.2,4461.1,0.71]
[1756948170470,0.53495502,4461.2,4461.1,1.52372803]
[1756948173672,0.0753,4461.6,4461.5,0.8281]
[1756948174079,0.61011544,4461.6,4461.5,0.8281]
[1756948174882,0.53481544,4461.6,4461.5,0.8281]
[1756948175276,0.3198,4462.3,4462.2,0.4025]
[1756948175477,0.4007,4462.3,4462.2,0.71]
[1756948175679,0.7094,4462.3,4462.2,0.71]
[1756948177380,0.112,4462.5,4462.2,1.21622803]
[1756948177588,0.112,4462.5,4462.4,0.71]
[1756948177978,0.2078,4462.5,4462.4,0.71]
[1756948178894,0.23,4462.6,4462.5,0.4256]
[1756948179091,0.00336327,4462.9,4462.6,0.3075]
[1756948179288,0.00336327,4462.9,4462.8,0.4025]
[1756948179489,0.00336327,4462.9,4462.8,1.52372803]
[1756948185091,0.20516327,4462.9,4462.8,0.71]
[1756948185295,0.69206327,4462.9,4462.5,0.1181]
[1756948185498,1.50242803,4462.7,4462.6,0.5003]
[1756948186592,0.3977,4462.7,4462.6,0.6968]
[1756948186798,0.2018,4462.7,4462.6,0.6968]
[1756948187298,0.73399695,4462.7,4462.6,0.6968]
[1756948189698,0.53219695,4462.7,4462.6,0.6968]
[1756948189893,0.53219695,4462.8,4462.6,0.3987]
[1756948190500,0.73399695,4462.8,4462.7,0.6968]
[1756948191802,1.22089695,4462.8,4462.7,0.2981]
[1756948192305,2.03462498,4462.8,4462.7,0.5003]
[1756948192601,0.6887,4462.6,4462.5,0.2981]
[1756948192802,1.22089695,4462.6,4462.5,0.5003]
[1756948193792,1.22089695,4462.6,4462.0,0.12146327]
[1756948193793,0.1046,4462.5,4462.0,0.30146327]
[1756948193999,1.50242803,4462.1,4462.0,0.30146327]
[1756948194301,2.03462498,4462.1,4462.0,0.30146327]
[1756948194702,2.03462498,4462.1,4462.0,0.50366327]
[1756948194996,2.03462498,4462.1,4462.0,0.00336327]
[1756948195994,1.22089695,4462.1,4462.0,0.00336327]
[1756948196196,2.03462498,4462.1,4462.0,0.00336327]
[1756948198703,2.03462498,4462.1,4462.0,0.30146327]
[1756948199305,2.03462498,4462.1,4462.0,0.00336327]
[1756948199503,6.03462498,4462.1,4462.0,0.00336327]
[1756948199905,0.53219695,4462.1,4462.0,0.81546327]
[1756948200100,0.53219695,4462.1,4462.0,4.81546327]
[1756948201499,0.229,4462.7,4462.6,0.6968]
[1756948201698,0.112,4462.8,4462.6,0.3987]
[1756948201894,0.53185736,4462.7,4462.6,0.6968]
[1756948203097,0.112,4462.8,4462.7,0.2981]
[1756948203406,0.5320456,4462.8,4462.7,0.3987]
[1756948203600,0.5320456,4462.8,4462.7,0.6968]
[1756948204807,0.9297456,4462.8,4462.7,0.6968]
[1756948205907,0.5320456,4462.8,4462.7,0.6968]
[1756948206312,0.5320456,4462.8,4462.7,1.67318231]
[1756948212508,0.7321456,4462.8,4462.7,0.2981]
[1756948212812,1.2319456,4462.8,4462.7,0.6857]
[1756948213014,1.2319456,4462.8,4462.7,0.4882]
[1756948213207,1.23190505,4462.8,4462.7,0.4882]
[1756948214012,0.6999,4462.6,4462.5,0.4915]
[1756948214207,0.94000505,4462.6,4462.5,0.8106]
[1756948214512,1.23190505,4462.6,4462.5,0.8106]
[1756948215708,0.94000505,4462.6,4462.5,0.8106]
[1756948217616,1.23190505,4462.6,4462.5,0.8106]
[1756948218926,0.53200505,4462.6,4462.5,0.8106]
[1756948219213,0.86567403,4462.6,4462.5,0.6131]
[1756948219415,1.15757403,4462.6,4462.5,0.6131]
[1756948219720,1.15757403,4462.6,4462.5,0.4915]
[1756948220310,1.15757403,4462.6,4462.0,0.11866327]
[1756948220513,0.6999,4462.6,4462.0,0.11866327]
[1756948220712,0.2919,4462.5,4462.4,0.1901]
[1756948221210,0.6999,4462.5,4462.4,0.4915]
[1756948221411,0.00336327,4462.9,4462.8,0.689]
[1756948221613,0.00336327,4462.9,4462.8,1.66538231]
[1756948222218,0.20346327,4462.9,4462.8,1.66538231]
[1756948223516,0.70326327,4462.9,4462.8,0.3014]
[1756948223714,5.90371558,4462.9,4462.0,0.00336327]
[1756948223915,0.2001,4461.1,4461.0,0.5057]
[1756948224620,0.2919,4461.9,4461.0,0.5057]
[1756948224913,0.6999,4461.9,4461.8,0.3876]
[1756948225111,0.2919,4461.8,4461.0,1.09448231]
[1756948225311,0.6999,4461.8,4461.7,0.1901]
[1756948225912,0.6999,4461.8,4461.7,0.4915]
[1756948226116,0.2919,4461.4,4460.6,0.3014]
[1756948227221,0.2919,4461.4,4461.3,0.1901]
[1756948227222,0.6999,4461.4,4461.3,0.1901]
[1756948227519,0.6999,4461.4,4461.3,0.689]
[1756948231024,1.23646511,4461.4,4461.3,0.689]
[1756948232616,1.23646511,4461.4,4460.8,0.3014]
[1756948232812,0.6999,4460.9,4460.8,0.689]
[1756948237032,0.4161,4461.5,4460.3,0.3014]
[1756948237229,0.53604681,4461.4,4460.3,0.3014]
[1756948237523,0.6999,4460.4,4460.3,0.689]
[1756948237825,0.6999,4460.4,4459.6,0.3014]
[1756948238420,0.70326327,4460.4,4459.6,0.3014]
[1756948239928,0.408,4459.7,4459.6,0.4915]
[1756948240118,0.6999,4459.7,4459.6,0.4915]
[1756948240319,0.6999,4459.7,4459.6,0.689]
[1756948240520,0.1242,4460.0,4458.7,3.39189667]
[1756948240521,0.2919,4460.3,4458.8,0.3014]
[1756948240721,0.2919,4460.3,4459.0,0.1216]
[1756948241015,0.2919,4460.3,4459.1,0.3014]
[1756948243124,0.1121,4460.2,4459.1,0.3014]
[1756948243423,0.6988,4459.9,4459.8,0.1919]
[1756948243730,0.6988,4459.9,4459.8,0.5009]
[1756948245326,0.6988,4459.9,4459.8,0.1919]
[1756948245519,0.6988,4459.9,4459.8,0.5009]
[1756948246129,0.6988,4459.9,4459.8,0.6977]
[1756948246428,0.196,4459.9,4459.8,0.6977]
[1756948246630,0.4932,4459.9,4459.8,0.6977]
[1756948246931,0.6988,4459.9,4459.8,0.6977]
[1756948247426,0.6988,4459.9,4459.8,1.67514978]
[1756948249127,0.196,4459.9,4459.8,1.67514978]
[1756948249334,0.3081,4460.2,4460.1,0.3887]
[1756948249532,0.3081,4460.2,4460.1,0.6977]
[1756948249533,0.4932,4460.2,4460.1,0.6977]
[1756948249725,0.6988,4460.2,4460.1,0.6977]
[1756948250622,0.6988,4460.2,4459.0,0.1216]
[1756948250623,0.2972,4460.1,4459.3,0.97744978]
[1756948250929,0.6988,4459.4,4459.3,0.5009]
[1756948251334,0.6988,4459.4,4459.3,0.1919]
[1756948251728,0.6988,4459.4,4459.3,0.5009]
[1756948251927,0.6988,4459.4,4459.3,0.1919]
[1756948252636,0.6988,4459.4,4459.3,0.5009]
[1756948253023,0.6988,4459.4,4459.3,0.1919]
[1756948253228,0.4016,4459.4,4459.3,0.1919]
[1756948253722,0.6988,4459.4,4459.3,0.1919]
[1756948254522,0.1227,4459.5,4458.2,0.229]
[1756948254523,0.2972,4459.3,4458.9,1.28644978]
[1756948254723,0.8215,4459.0,4458.9,1.47834978]
[1756948254931,0.8215,4459.0,4458.9,1.16934978]
[1756948255531,0.8215,4459.0,4458.6,0.309]
[1756948256924,0.5243,4459.0,4458.5,0.97744978]
[1756948257123,0.5243,4459.0,4458.3,0.309]
[1756948257124,0.6988,4458.6,4458.3,0.309]
[1756948257428,0.4932,4458.0,4457.9,1.67514978]
[1756948257633,0.1227,4458.5,4458.0,0.4244]
[1756948257932,0.6988,4458.5,4458.4,0.6977]
[1756948258537,0.8215,4458.5,4458.4,0.1919]
[1756948259535,1.36004058,4458.5,4458.1,0.309]
[1756948259734,0.8215,4458.5,4457.9,0.97744978]
[1756948259931,0.6988,4458.4,4458.3,0.1919]
[1756948260134,0.6988,4458.4,4458.3,0.6977]
[1756948260338,0.6988,4458.4,4458.3,1.67514978]
[1756948261242,1.23757362,4458.4,4458.3,1.67514978]
[1756948261737,1.23757362,4458.4,4457.9,0.309]
[1756948262039,0.6988,4458.3,4458.2,0.5009]
[1756948262235,1.23757513,4458.3,4458.2,0.5009]
[1756948262432,1.23757513,4458.3,4457.8,0.97744978]
[1756948262635,0.6988,4458.3,4458.2,0.1919]
[1756948262836,0.6988,4458.3,4458.0,0.309]
[1756948262837,1.23743764,4458.3,4458.0,0.309]
[1756948263035,0.6988,4458.1,4458.0,0.5009]
[1756948263430,0.6988,4458.1,4457.5,0.1154]
[1756948263635,0.6988,4457.8,4457.7,1.67514978]
[1756948263843,0.4932,4457.8,4457.7,1.67514978]
[1756948265234,0.196,4457.8,4457.7,1.67514978]
[1756948265440,0.4932,4457.8,4457.7,1.20396163]
[1756948265641,0.6988,4457.8,4457.7,1.20396163]
[1756948265945,0.6988,4457.8,4457.7,1.51296163]
[1756948267938,0.4932,4457.8,4457.7,1.51296163]
[1756948268137,0.196,4457.8,4457.7,1.51296163]
[1756948268844,0.81526163,4458.9,4457.7,0.81526163]
[1756948269045,0.196,4457.9,4457.8,0.6977]
[1756948269246,0.4932,4457.9,4457.8,0.6977]
[1756948274152,0.6962,4457.9,4457.8,0.6977]
[1756948274353,0.6962,4457.9,4457.8,1.51296163]
[1756948275049,0.6962,4457.9,4457.8,0.6977]
[1756948275644,1.23420518,4457.9,4457.8,0.6977]
[1756948276657,1.23420518,4457.9,4457.8,1.51296163]
[1756948278960,1.23420518,4457.9,4457.8,0.6977]
[1756948279164,1.23420518,4457.9,4457.8,0.1919]
[1756948279656,0.3948,4457.1,4457.0,0.3148]
[1756948279862,0.6963,4457.1,4457.0,0.6794]
[1756948281159,0.6963,4457.1,4456.7,0.2828]
[1756948281160,1.23489168,4457.1,4456.7,0.2828]
[1756948281356,0.6963,4456.8,4456.7,0.4822]
[1756948281550,1.23490313,4456.8,4456.3,0.81526163]
[1756948281755,0.3948,4456.5,4456.4,0.1994]
[1756948281951,0.6963,4456.5,4456.4,0.6794]
[1756948282464,0.8193,4456.5,4456.4,0.6794]
[1756948282669,0.6963,4456.4,4456.3,0.4822]
[1756948282858,1.23540986,4456.4,4456.0,1.09806163]
[1756948283162,0.6963,4456.1,4456.0,0.3966]
[1756948283355,0.6963,4456.1,4456.0,0.5175]
[1756948283556,1.23526558,4456.1,4456.0,0.8003]
[1756948283761,1.23526558,4456.1,4456.0,0.6794]
[1756948284160,1.23526558,4456.1,4456.0,0.2828]
[1756948284365,0.6963,4456.1,4456.0,0.6794]
[1756948284561,0.6963,4456.1,4456.0,0.8003]
[1756948284757,0.1918,4456.1,4456.0,0.8003]
[1756948285363,0.4933,4456.1,4456.0,0.8003]
[1756948286263,0.3015,4456.4,4456.0,0.8003]
[1756948286464,1.04312288,4456.3,4456.2,1.21186163]
[1756948286659,1.23492288,4456.3,4456.2,1.49466163]
[1756948286860,0.73042288,4456.3,4456.2,1.49466163]
[1756948287056,0.6238,4456.9,4456.8,0.1994]
[1756948287360,1.16239814,4456.9,4456.8,0.4822]
[1756948287560,0.93339814,4456.9,4456.8,0.4822]
[1756948287762,1.23489814,4456.9,4456.8,0.6794]
[1756948287968,0.53859814,4456.9,4456.8,1.49466163]
[1756948288164,0.12636327,4457.5,4456.9,0.2828]
[1756948288466,0.12636327,4457.5,4456.5,0.1209]
[1756948288467,0.82266327,4457.5,4457.4,0.1994]
[1756948288667,1.36133823,4457.5,4457.4,0.1994]
[1756948289157,1.36133823,4457.5,4457.4,0.4822]
[1756948290863,1.36133823,4457.5,4457.4,0.1994]
[1756948291065,1.36133823,4457.5,4456.8,0.81526163]
[1756948291269,0.6963,4456.9,4456.8,1.21186163]
[1756948291858,0.6963,4456.9,4456.8,1.49466163]
[1756948292062,0.4933,4456.9,4456.8,1.49466163]
[1756948292465,0.1918,4456.9,4456.8,1.49466163]
[1756948292871,0.229,4457.4,4456.8,1.21186163]
[1756948293070,1.2351212,4457.3,4457.2,0.4822]
[1756948293371,1.2351212,4457.3,4457.2,0.6794]
[1756948303670,0.684,4457.4,4457.3,0.5174]
[1756948304870,1.22332091,4457.4,4457.0,0.3114]
[1756948305070,0.684,4457.4,4457.0,0.3114]
[1756948306067,0.684,4457.4,4457.1,0.3114]
[1756948306377,0.3988,4457.4,4456.7,0.3114]
[1756948306573,0.198,4456.8,4456.7,0.7173]
[1756948306878,0.4832,4456.8,4456.7,0.7173]
[1756948307574,0.198,4456.8,4456.7,0.7173]
[1756948307775,0.2852,4457.4,4456.8,0.3114]
[1756948308078,0.4832,4457.4,4457.3,0.7173]
[1756948308276,1.02245683,4457.4,4457.3,0.7173]
[1756948308477,1.22325683,4457.4,4457.3,0.7173]
[1756948310274,1.22325683,4457.4,4456.5,0.93616163]
[1756948310275,2.03851846,4457.4,4456.5,0.1209]
[1756948310479,0.4832,4456.7,4456.6,0.94167]
[1756948310882,0.4832,4456.7,4456.6,0.7173]
[1756948312079,0.684,4456.7,4456.6,0.7173]
[1756948312278,0.684,4456.7,4456.6,0.206]
[1756948312476,0.3988,4456.7,4456.1,0.3114]
[1756948312671,0.198,4456.2,4456.1,0.5174]
[1756948312877,0.92936163,4457.0,4456.1,0.7173]
[1756948313080,0.198,4456.5,4456.4,1.22116163]
[1756948313284,0.229,4457.3,4456.7,0.4059]
[1756948313580,0.198,4456.8,4456.7,0.7173]
[1756948313970,1.22071059,4456.8,4456.7,0.7173]
[1756948316376,0.53671059,4456.8,4456.7,0.7173]
[1756948317478,1.22071059,4456.8,4456.7,0.7173]
[1756948320082,1.22071059,4456.8,4456.7,0.206]
[1756948320283,1.22071059,4456.8,4456.4,0.3114]
[1756948320485,0.2852,4456.7,4456.3,0.81526163]
[1756948320684,0.2852,4456.7,4456.6,0.206]
[1756948320984,0.684,4456.7,4456.6,0.5174]
[1756948321482,0.684,4456.7,4456.6,0.7173]
[1756948321880,0.684,4456.7,4456.2,0.3114]
[1756948322080,0.198,4456.1,4456.0,1.34206163]
[1756948322383,0.684,4456.1,4456.0,1.34206163]
[1756948322579,0.2852,4456.4,4456.3,0.4059]
[1756948322782,0.7981,4457.0,4456.9,0.4059]
[1756948322985,1.33504496,4457.0,4456.9,0.7173]
[1756948325586,1.33504496,4457.0,4456.9,0.206]
[1756948325986,1.33504496,4457.0,4456.6,0.3114]
[1756948326287,0.7981,4456.5,4456.4,1.02126163]
[1756948326484,0.7981,4456.5,4456.4,1.33266163]
[1756948326683,0.7981,4456.5,4456.4,1.53256163]
[1756948326987,0.7981,4456.5,4456.4,0.7173]
[1756948327486,0.7981,4456.5,4456.4,0.4059]
[1756948327685,0.198,4455.7,4455.6,0.7173]
[1756948327983,0.4832,4455.7,4455.6,0.7173]
[1756948329382,0.684,4455.7,4455.6,0.7173]
[1756948329984,0.684,4455.7,4455.3,0.3114]
[1756948330184,0.2852,4455.3,4454.8,0.3114]
[1756948330385,0.2852,4455.3,4454.7,0.97907573]
[1756948330386,0.684,4455.3,4455.2,0.7173]
[1756948330784,0.684,4455.3,4455.2,0.4059]
[1756948331385,0.684,4455.3,4454.9,0.3114]
[1756948331600,0.684,4455.3,4454.7,0.97907573]
[1756948331797,0.2852,4455.2,4454.7,0.97907573]
[1756948332089,0.7248,4454.9,4454.8,0.6908]
[1756948332291,0.7248,4454.9,4454.8,0.4981]
[1756948334192,0.7248,4454.9,4454.8,0.6908]
[1756948336090,0.3104,4454.8,4454.7,0.2081]
[1756948336288,0.7248,4454.8,4454.7,0.4981]
[1756948336692,0.7248,4454.8,4454.7,0.6908]
[1756948337086,0.3104,4454.8,4454.7,0.6908]
[1756948337392,0.5189,4454.8,4454.7,0.6908]
[1756948337593,0.7248,4454.8,4454.7,0.6908]
[1756948339092,0.3104,4455.1,4454.8,0.29]
[1756948339291,0.5189,4455.1,4455.0,0.6908]
[1756948340195,0.00336708,4455.2,4455.0,0.6908]
[1756948340392,0.00336708,4455.2,4455.1,0.6908]
[1756948340585,0.00336708,4455.2,4455.1,1.66987573]
[1756948340786,0.00336708,4455.2,4455.1,0.6908]
[1756948341089,0.00336708,4455.2,4455.1,0.4981]
[1756948341090,0.72816708,4455.2,4455.1,0.4981]
[1756948341294,0.72816708,4455.2,4455.1,0.6908]
[1756948341494,0.52226708,4455.2,4455.1,0.6908]
[1756948341695,0.72816708,4455.2,4455.1,0.4981]
[1756948341889,0.72816708,4455.2,4455.1,0.6908]
[1756948342390,0.00336708,4455.2,4455.1,0.6908]
[1756948343996,0.72816708,4455.2,4455.1,0.6908]
[1756948344586,0.72816708,4455.2,4454.5,0.1164]
[1756948344783,0.72816708,4455.2,4454.6,0.29]
[1756948346306,0.2085,4454.7,4454.6,0.6908]
[1756948346500,0.4226,4455.1,4454.7,0.29]
[1756948346805,0.837,4455.1,4455.0,0.8072]
[1756948347101,0.7248,4455.1,4455.0,0.6908]
[1756948351495,0.7248,4455.1,4454.6,0.97907573]
[1756948351796,0.4144,4455.1,4455.0,0.6908]
[1756948352201,0.7248,4455.1,4455.0,0.6908]
[1756948352992,0.5189,4455.1,4455.0,0.8072]
[1756948353488,0.7248,4455.1,4455.0,0.8072]
[1756948353696,0.2085,4454.6,4454.5,0.3245]
[1756948354001,0.00336708,4455.2,4454.5,0.5172]
[1756948354202,0.3104,4455.1,4454.5,0.5172]
[1756948354500,0.5189,4454.7,4454.6,0.6908]
[1756948355096,0.3104,4455.1,4454.6,0.4008]
[1756948355395,0.72816708,4455.2,4454.9,0.29]
[1756948355596,0.8496,4455.0,4454.9,0.4981]
[1756948355801,0.8496,4455.0,4454.9,0.6908]
[1756948356101,0.8496,4455.0,4454.9,0.2081]
[1756948356399,0.8496,4455.0,4454.6,0.29]
[1756948356795,0.8496,4455.0,4454.0,0.1148]
[1756948357098,0.7248,4454.9,4454.8,0.2081]
[1756948357299,0.7248,4454.9,4454.3,0.29]
[1756948358300,0.53672655,4454.8,4454.3,0.29]
[1756948358600,0.5189,4454.2,4454.1,1.37987573]
[1756948358813,0.7248,4454.2,4454.1,1.37987573]
[1756948359103,0.7248,4454.2,4454.1,1.66987573]
[1756948359404,0.7248,4454.2,4454.1,0.6908]
[1756948360702,1.26163364,4454.2,4454.1,0.6908]
[1756948361303,0.7248,4454.2,4454.1,0.6908]
[1756948362900,0.299,4454.8,4454.2,0.2956]
[1756948363210,0.1899,4454.8,4454.7,0.689]
[1756948363504,0.4889,4454.8,4454.7,0.689]
[1756948365508,0.6855,4454.8,4454.7,0.689]
[1756948365701,0.299,4455.1,4454.7,0.3934]
[1756948366008,1.3346383,4455.0,4454.9,0.689]
[1756948366316,1.4529383,4455.0,4454.9,0.689]
[1756948366505,1.3346383,4455.0,4454.9,0.689]
[1756948366908,1.2224383,4455.0,4454.9,0.689]
[1756948368106,0.11556708,4455.2,4455.1,0.689]
[1756948368412,0.80106708,4455.2,4455.1,0.689]
[1756948368708,0.80106708,4455.2,4455.1,0.4922]
[1756948369308,0.68886708,4455.2,4454.7,0.2956]
[1756948369610,0.6855,4454.8,4454.7,0.4922]
[1756948370612,0.4889,4454.8,4454.7,1.66807573]
[1756948371199,0.1122,4455.0,4454.8,0.2956]
[1756948371410,0.1122,4455.0,4454.9,0.3934]
[1756948371611,0.6011,4455.0,4454.9,0.689]
[1756948372014,0.4889,4455.0,4454.9,0.689]
[1756948372510,0.1899,4455.0,4454.9,0.689]
[1756948372714,0.00336708,4455.2,4455.1,0.689]
[1756948373014,0.00336708,4455.2,4455.1,1.66807573]
[1756948375909,0.00336708,4455.2,4455.1,0.689]
[1756948378811,0.00336708,4455.2,4455.1,4.689]
[1756948379013,0.1122,4455.4,4455.1,4.689]
[1756948379014,0.299,4456.2,4455.3,0.689]
[1756948379213,0.1183,4456.0,4455.0,0.3505]
[1756948379412,0.4889,4455.6,4455.5,1.66807573]
[1756948380420,0.299,4455.9,4455.6,0.2956]
[1756948380620,0.4889,4456.4,4456.3,0.3934]
[1756948380814,0.4889,4456.4,4456.3,0.689]
[1756948382025,0.3865,4456.9,4456.8,0.1966]
[1756948382216,0.6855,4456.9,4456.8,0.4922]
[1756948382416,1.2229844,4456.9,4456.8,0.4922]
[1756948382617,0.6855,4456.9,4456.8,0.4922]
[1756948382814,0.299,4456.9,4456.8,0.689]
[1756948383012,0.1899,4457.4,4457.3,0.3934]
[1756948383217,0.4889,4457.4,4457.3,0.689]
[1756948384123,0.4889,4457.4,4457.3,1.66807573]